bitfinex/quotes_BTCUSD_20240607
["timestamp","ask_amount","ask_price","bid_price","bid_amount"]
[1717749595124,2.00286,71146.0,71145.0,2.50898889]
[1717749595311,2.00286,71146.0,71145.0,2.30898889]
[1717749595747,2.00286,71146.0,71145.0,2.24068889]
[1717749595957,2.00286,71146.0,71145.0,2.30898889]
[1717749596170,2.00286,71146.0,71145.0,2.50898889]
[1717749597368,2.00286,71146.0,71145.0,2.30898889]
[1717749597818,2.00286,71146.0,71145.0,2.50898889]
[1717749598239,2.00286,71146.0,71145.0,2.30898889]
[1717749598642,2.00286,71146.0,71145.0,2.08899643]
[1717749599073,2.00286,71146.0,71145.0,2.30898889]
[1717749599475,2.00286,71146.0,71145.0,2.08899643]
[1717749600386,2.00286,71146.0,71145.0,2.30898889]
[1717749600605,2.00286,71146.0,71145.0,2.02069643]
[1717749600844,2.00286,71146.0,71145.0,2.30898889]
[1717749601062,2.00286,71146.0,71145.0,2.08899643]
[1717749601274,2.00286,71146.0,71145.0,2.30898889]
[1717749603275,2.00286,71146.0,71145.0,2.30893614]
[1717749603959,2.00286,71146.0,71145.0,2.50893614]
[1717749604583,2.00286,71146.0,71145.0,2.30893614]
[1717749604960,2.00286,71146.0,71145.0,2.50893614]
[1717749605162,2.00286,71146.0,71145.0,2.08894368]
[1717749605322,2.00286,71146.0,71145.0,2.50893614]
[1717749605531,2.00286,71146.0,71145.0,2.51093614]
[1717749606406,2.00286,71146.0,71145.0,2.40585628]
[1717749606715,1.12126819,71146.0,71145.0,2.50585628]
[1717749606922,1.05973181,71146.0,71145.0,3.00145174]
[1717749609904,0.98526625,71146.0,71145.0,3.00145174]
[1717749610986,0.98526625,71146.0,71145.0,3.43756489]
[1717749611440,0.98526625,71146.0,71145.0,2.93487228]
[1717749611649,0.98526625,71146.0,71145.0,3.00142849]
[1717749611857,0.98526625,71146.0,71145.0,2.92887228]
[1717749612081,0.98526625,71146.0,71145.0,2.92287228]
[1717749612082,0.98326625,71146.0,71145.0,2.92287228]
[1717749612325,0.98326625,71146.0,71145.0,2.97644815]
[1717749614172,0.98326625,71146.0,71145.0,1.99835628]
[1717749614376,1.14766625,71146.0,71145.0,1.7432183]
[1717749614583,1.14766625,71146.0,71145.0,1.51724028]
[1717749614795,1.14766625,71146.0,71145.0,1.13612428]
[1717749615053,1.22846625,71146.0,71145.0,0.82461489]
[1717749615469,1.22846625,71146.0,71145.0,0.81061489]
[1717749615672,1.22846625,71146.0,71145.0,0.79661489]
[1717749615884,1.22846625,71146.0,71145.0,0.89291489]
[1717749616104,1.22846625,71146.0,71145.0,1.01591489]
[1717749616547,1.22846625,71146.0,71145.0,0.79592243]
[1717749616758,1.22846625,71146.0,71145.0,0.79594048]
[1717749616971,1.22846625,71146.0,71145.0,1.01593294]
[1717749618301,1.22846625,71146.0,71145.0,1.00593294]
[1717749618508,1.22846625,71146.0,71145.0,0.56408248]
[1717749619008,1.22846625,71146.0,71145.0,0.38241139]
[1717749619237,1.22846625,71146.0,71145.0,0.17241893]
[1717749619700,1.22846625,71146.0,71145.0,0.38241139]
[1717749619918,1.22846625,71146.0,71145.0,0.36841139]
[1717749620368,1.22846625,71146.0,71145.0,0.43271139]
[1717749621728,1.22946625,71146.0,71145.0,0.44371139]
[1717749622180,1.23046625,71146.0,71145.0,0.45771139]
[1717749622401,1.23046625,71146.0,71145.0,0.59826939]
[1717749622646,1.22846625,71146.0,71145.0,0.57326939]
[1717749622861,0.98526625,71146.0,71145.0,0.59726939]
[1717749623090,0.98526625,71146.0,71145.0,0.55196939]
[1717749623306,0.98526625,71146.0,71145.0,0.62026939]
[1717749624609,0.98426625,71146.0,71145.0,0.36641139]
[1717749624838,0.98426625,71146.0,71145.0,0.3884815]
[1717749625092,0.98526625,71146.0,71145.0,0.17041893]
[1717749626674,0.98526625,71146.0,71145.0,0.38041139]
[1717749627130,0.98526625,71146.0,71145.0,0.17041893]
[1717749627351,1.21746625,71146.0,71145.0,0.38041139]
[1717749628834,1.21746625,71146.0,71145.0,0.17041893]
[1717749629039,1.21746625,71146.0,71145.0,0.38041139]
[1717749630159,1.21746625,71146.0,71145.0,0.38028734]
[1717749630578,1.21746625,71146.0,71145.0,0.026]
[1717749630579,1.35802225,71146.0,71145.0,0.026]
[1717749634793,1.35802225,71146.0,71145.0,0.226]
[1717749634992,1.35802225,71146.0,71145.0,0.23599246]
[1717749638801,1.35802225,71146.0,71145.0,0.23693846]
[1717749639009,1.35888225,71146.0,71145.0,0.23693846]
[1717749646593,1.35888225,71146.0,71145.0,0.026946]
[1717749647015,1.35888225,71146.0,71145.0,0.23693846]
[1717749656060,1.35888225,71146.0,71145.0,0.026946]
[1717749656283,1.70829425,71146.0,71145.0,0.026946]
[1717749657130,1.70729425,71146.0,71145.0,0.013946]
[1717749657541,1.70729425,71146.0,71145.0,0.016946]
[1717749659045,1.63799425,71146.0,71145.0,0.003946]
[1717749659358,1.63799425,71146.0,71145.0,0.006946]
[1717749669697,1.48259425,71146.0,71145.0,0.006946]
[1717749671135,1.48259425,71146.0,71145.0,0.206946]
[1717749671361,1.48259425,71146.0,71145.0,0.006946]
[1717749672014,1.40579425,71146.0,71145.0,0.250546]
[1717749672234,1.40579425,71146.0,71145.0,0.450546]
[1717749672436,1.40579425,71146.0,71145.0,0.250546]
[1717749672638,1.40579425,71146.0,71145.0,0.006946]
[1717749675273,1.40579425,71146.0,71145.0,0.206946]
[1717749675757,1.40579425,71146.0,71145.0,0.006946]
[1717749676327,1.40579425,71146.0,71145.0,0.206946]
[1717749676529,1.40579425,71146.0,71145.0,0.006946]
[1717749677753,1.64059826,71146.0,71145.0,0.006946]
[1717749677968,1.64029425,71146.0,71145.0,0.006946]
[1717749689406,1.40579425,71146.0,71145.0,0.206946]
[1717749689838,1.40579425,71146.0,71145.0,0.21693846]
[1717749690054,1.40579425,71146.0,71145.0,0.206946]
[1717749691654,1.40579425,71146.0,71145.0,0.21693846]
[1717749691875,1.40579425,71146.0,71145.0,0.206946]
[1717749695004,1.40579425,71146.0,71145.0,0.288746]
[1717749696057,1.40579425,71146.0,71145.0,0.29873846]
[1717749696269,1.40579425,71146.0,71145.0,0.288746]
[1717749696882,1.40579425,71146.0,71145.0,0.006946]
[1717749697341,1.40609826,71146.0,71145.0,0.006946]
[1717749697560,1.64309425,71146.0,71145.0,0.006946]
[1717749697967,1.92451026,71146.0,71145.0,0.006946]
[1717749698412,1.96666906,71146.0,71145.0,0.006946]
[1717749698860,1.96636505,71146.0,71145.0,0.006946]
[1717749699063,1.96666906,71146.0,71145.0,0.006946]
[1717749701322,1.92451026,71146.0,71145.0,0.006946]
[1717749701978,1.92420625,71146.0,71145.0,0.006946]
[1717749703059,1.76310625,71146.0,71145.0,0.006946]
[1717749703961,1.82634445,71146.0,71145.0,0.006946]
[1717749704391,1.76310625,71146.0,71145.0,0.006946]
[1717749704814,1.80529093,71146.0,71145.0,0.006946]
[1717749707667,1.72909093,71146.0,71145.0,0.006946]
[1717749707919,1.40579425,71146.0,71145.0,0.455346]
[1717749708162,1.40579425,71146.0,71145.0,0.46533846]
[1717749708426,1.40579425,71146.0,71145.0,0.006946]
[1717749708658,1.40579425,71146.0,71131.0,0.000946]
[1717749708659,0.140583,71132.0,71131.0,0.000946]
[1717749708889,0.203846,71132.0,71131.0,0.249346]
[1717749709107,0.140583,71132.0,71131.0,0.000946]
[1717749709324,1.01733593,71132.0,71131.0,0.000946]
[1717749709541,1.14022542,71132.0,71131.0,0.000946]
[1717749709765,1.96529242,71132.0,71131.0,0.000946]
[1717749709979,2.17926614,71132.0,71131.0,0.000946]
[1717749710203,2.10732769,71132.0,71131.0,0.000946]
[1717749710423,1.97229242,71132.0,71131.0,0.001946]
[1717749710640,2.08310244,71132.0,71131.0,0.001946]
[1717749710857,1.75985628,71132.0,71131.0,0.000946]
[1717749711069,1.95985628,71132.0,71131.0,0.000946]
[1717749711479,1.93786037,71132.0,71131.0,0.000946]
[1717749711863,2.04293223,71132.0,71131.0,0.000946]
[1717749712057,2.05093223,71132.0,71131.0,0.001946]
[1717749712299,2.06293223,71132.0,71131.0,0.002946]
[1717749712511,2.01472078,71132.0,71131.0,0.002946]
[1717749712713,2.13983865,71132.0,71131.0,0.000946]
[1717749712937,2.15183865,71132.0,71131.0,0.001946]
[1717749713137,1.75042078,71132.0,71131.0,0.002946]
[1717749713344,1.7767101,71132.0,71131.0,0.002946]
[1717749713962,1.7767101,71132.0,71131.0,0.001946]
[1717749713963,1.77898793,71132.0,71131.0,0.001946]
[1717749714225,1.87500578,71132.0,71131.0,0.002946]
[1717749714461,1.77898793,71132.0,71131.0,0.001946]
[1717749714701,1.78798793,71132.0,71131.0,0.002946]
[1717749714913,1.46265854,71132.0,71131.0,0.002946]
[1717749715130,0.722977,71126.0,71125.0,0.086946]
[1717749715345,0.703015,71122.0,71121.0,0.006446]
[1717749715562,0.771315,71122.0,71121.0,0.006446]
[1717749716463,0.791315,71122.0,71121.0,0.006446]
[1717749716645,0.771315,71122.0,71121.0,0.006446]
[1717749716984,0.780315,71122.0,71121.0,0.007446]
[1717749718057,0.430809,71122.0,71121.0,0.07967424]
[1717749718273,0.149603,71122.0,71121.0,0.46159317]
[1717749718480,0.149603,71122.0,71121.0,0.48259317]
[1717749718481,0.159603,71122.0,71121.0,0.48259317]
[1717749718917,0.149603,71122.0,71121.0,0.48159317]
[1717749719129,0.009,71122.0,71121.0,0.48159317]
[1717749719333,0.0683,71139.0,71121.0,0.48159317]
[1717749719334,0.140597,71125.0,71124.0,0.02]
[1717749719502,0.140597,71125.0,71124.0,0.23271893]
[1717749719946,0.281129,71142.0,71124.0,0.23271893]
[1717749719947,0.14059,71129.0,71127.0,0.02]
[1717749720151,0.14059,71129.0,71128.0,0.47841893]
[1717749720341,0.14059,71129.0,71128.0,0.45841893]
[1717749720636,0.14059,71129.0,71128.0,0.47841893]
[1717749721198,0.14059,71129.0,71128.0,0.45841893]
[1717749721603,0.14059,71129.0,71128.0,0.39011893]
[1717749722506,0.14059,71129.0,71128.0,0.39211893]
[1717749723725,0.14059,71129.0,71128.0,0.39711893]
[1717749723953,0.14059,71129.0,71128.0,0.39011893]
[1717749724310,0.14059,71129.0,71128.0,0.39211893]
[1717749724726,0.14059,71129.0,71128.0,0.41211893]
[1717749724932,0.14059,71129.0,71128.0,0.39211893]
[1717749725167,0.14059,71129.0,71128.0,0.39711893]
[1717749725538,0.14059,71129.0,71128.0,0.39211893]
[1717749725944,0.14059,71129.0,71128.0,0.39411893]
[1717749726166,0.14059,71129.0,71128.0,0.39211893]
[1717749726579,0.14059,71129.0,71128.0,0.39711893]
[1717749726781,0.14059,71129.0,71128.0,0.39511893]
[1717749727193,0.14059,71129.0,71128.0,0.40911893]
[1717749728319,0.14059,71129.0,71128.0,0.40411893]
[1717749728660,0.14059,71129.0,71128.0,0.39011893]
[1717749729150,0.14059,71129.0,71128.0,0.39611893]
[1717749729357,0.14159,71129.0,71128.0,0.40911893]
[1717749729769,0.14059,71129.0,71128.0,0.39611893]
[1717749729938,0.14059,71129.0,71128.0,0.39511893]
[1717749730167,0.14059,71129.0,71128.0,0.40911893]
[1717749730566,0.14059,71129.0,71128.0,0.39511893]
[1717749730760,0.14059,71129.0,71128.0,0.40911893]
[1717749731366,0.14059,71129.0,71128.0,0.40411893]
[1717749731803,0.14159,71129.0,71128.0,0.41711893]
[1717749732145,0.14159,71129.0,71128.0,0.40311893]
[1717749732348,0.14059,71129.0,71128.0,0.39011893]
[1717749732673,0.14059,71129.0,71128.0,0.39411893]
[1717749732926,0.14059,71129.0,71128.0,0.40011893]
[1717749733328,0.14059,71129.0,71128.0,0.39411893]
[1717749733496,0.14059,71129.0,71128.0,0.39911893]
[1717749733886,0.14059,71129.0,71128.0,0.39411893]
[1717749734535,0.14059,71129.0,71128.0,0.39011893]
[1717749734868,0.14059,71129.0,71128.0,0.39411893]
[1717749735509,0.14059,71129.0,71128.0,0.39911893]
[1717749737302,0.14059,71129.0,71128.0,0.38990121]
[1717749737706,0.14059,71129.0,71128.0,0.38590121]
[1717749737942,0.14059,71129.0,71128.0,0.38990121]
[1717749738512,0.14059,71129.0,71128.0,0.38590121]
[1717749738661,0.14059,71129.0,71128.0,0.39090121]
[1717749739065,0.14059,71129.0,71128.0,0.39490121]
[1717749742404,0.14059,71129.0,71128.0,0.38990121]
[1717749742613,0.14059,71129.0,71128.0,0.38590121]
[1717749742820,0.14059,71129.0,71128.0,0.39190121]
[1717749743032,0.14059,71129.0,71128.0,0.38890121]
[1717749743437,0.14059,71129.0,71128.0,0.39090121]
[1717749744119,0.14059,71129.0,71128.0,0.38790121]
[1717749744516,0.14059,71129.0,71128.0,0.38990121]
[1717749767722,0.14059,71129.0,71128.0,0.39018239]
[1717749768731,0.14059,71129.0,71128.0,0.39112839]
[1717749776375,0.17011682,71129.0,71128.0,0.39112839]
[1717749776705,0.02952682,71129.0,71128.0,0.38054611]
[1717749776932,0.06328969,71134.0,71128.0,0.61253611]
[1717749776933,0.02952682,71131.0,71128.0,0.61253611]
[1717749777144,0.04219313,71134.0,71128.0,0.61253611]
[1717749777145,0.04219313,71138.0,71129.0,0.02862296]
[1717749777402,0.02952278,71137.0,71133.0,0.0684]
[1717749777694,0.140564,71142.0,71135.0,0.2386]
[1717749777929,0.02933056,71141.0,71136.0,0.14441893]
[1717749780109,0.02933056,71141.0,71136.0,0.14541893]
[1717749782894,0.16989656,71141.0,71136.0,0.14541893]
[1717749783112,0.02933056,71140.0,71136.0,0.14541893]
[1717749784196,0.02933056,71140.0,71136.0,0.14441893]
[1717749784429,0.02933056,71140.0,71136.0,0.14541893]
[1717749784876,0.16989856,71140.0,71136.0,0.14541893]
[1717749785092,0.02933056,71139.0,71136.0,0.14541893]
[1717749785532,0.140568,71140.0,71136.0,0.14541893]
[1717749786370,0.140568,71140.0,71136.0,0.14441893]
[1717749786679,0.140568,71140.0,71136.0,0.14541893]
[1717749786885,0.140561,71144.0,71139.0,0.0684]
[1717749787101,0.0292499,71143.0,71141.0,0.2421]
[1717749787324,0.140561,71144.0,71142.0,0.14441893]
[1717749788162,0.98412625,71146.0,71144.0,0.1592]
[1717749788379,0.98412625,71146.0,71145.0,0.22731893]
[1717749788766,0.98412625,71146.0,71145.0,0.38651893]
[1717749790793,0.98512625,71146.0,71145.0,0.38651893]
[1717749794098,0.98512625,71146.0,71145.0,0.14441893]
[1717749794969,0.25507722,71133.0,71132.0,0.281167]
[1717749795189,0.25507722,71133.0,71132.0,0.472567]
[1717749795622,0.25507722,71133.0,71132.0,0.240583]
[1717749795827,0.25507722,71133.0,71132.0,0.308983]
[1717749796281,0.25507722,71133.0,71132.0,0.38500193]
[1717749796483,0.25607722,71133.0,71132.0,0.46740193]
[1717749796930,0.25607722,71133.0,71132.0,0.49040193]
[1717749797581,0.25607722,71133.0,71132.0,0.50440193]
[1717749797990,0.25607722,71133.0,71132.0,0.73560193]
[1717749803971,0.25607722,71133.0,71132.0,0.17241893]
[1717749819115,0.25607722,71133.0,71132.0,0.40781893]
[1717749819330,0.25607722,71133.0,71132.0,0.43081893]
[1717749821598,0.25607722,71133.0,71132.0,0.028]
[1717749821599,0.48947722,71133.0,71132.0,0.028]
[1717749829344,0.51277722,71133.0,71132.0,0.028]
[1717749829548,0.65335822,71133.0,71132.0,0.028]
[1717749829817,0.68273074,71133.0,71132.0,0.028]
[1717749830363,0.68273074,71133.0,71132.0,0.014]
[1717749830791,0.68273074,71133.0,71132.0,0.028]
[1717749830990,0.68273074,71133.0,71132.0,0.016078]
[1717749831320,0.68144973,71133.0,71132.0,0.009078]
[1717749831949,0.78144973,71133.0,71132.0,0.009078]
[1717749832155,0.78244973,71133.0,71132.0,0.023078]
[1717749832704,0.78144973,71133.0,71132.0,0.009078]
[1717749832911,0.78244973,71133.0,71132.0,0.016078]
[1717749835311,0.75307721,71133.0,71132.0,0.016078]
[1717749835521,0.7825526,71133.0,71132.0,0.016078]
[1717749835935,0.7825526,71133.0,71132.0,0.017024]
[1717749838580,0.7625526,71133.0,71132.0,0.017024]
[1717749838988,0.7825526,71133.0,71132.0,0.017024]
[1717749839199,0.7625526,71133.0,71132.0,0.017024]
[1717749839480,0.7825526,71133.0,71132.0,0.017024]
[1717749839635,0.7625526,71133.0,71132.0,0.017024]
[1717749840234,0.7825526,71133.0,71132.0,0.017024]
[1717749840404,1.0637156,71133.0,71132.0,0.017024]
[1717749840607,1.1321156,71133.0,71132.0,0.017024]
[1717749841570,1.0637156,71133.0,71132.0,0.017024]
[1717749843046,1.48929753,71133.0,71132.0,0.017024]
[1717749843665,1.53139895,71133.0,71132.0,0.017024]
[1717749843880,1.63929753,71133.0,71132.0,0.017024]
[1717749845338,1.68136942,71133.0,71132.0,0.017024]
[1717749846556,1.63929753,71133.0,71132.0,0.017024]
[1717749846758,1.2137156,71133.0,71132.0,0.017024]
[1717749846963,0.7070156,71133.0,71132.0,0.017024]
[1717749847143,0.4258526,71133.0,71132.0,0.017024]
[1717749847348,0.4258526,71133.0,71132.0,0.323824]
[1717749847629,0.39637721,71133.0,71132.0,0.323824]
[1717749849282,0.39637721,71133.0,71132.0,0.255424]
[1717749854350,0.42585158,71133.0,71132.0,0.255424]
[1717749854984,0.39637721,71133.0,71132.0,0.255424]
[1717749855207,0.42584766,71133.0,71132.0,0.255424]
[1717749856493,0.39637721,71133.0,71132.0,0.255424]
[1717749857528,0.25579621,71133.0,71132.0,0.39984293]
[1717749861189,0.25579621,71133.0,71132.0,0.54042593]
[1717749864183,0.26579621,71133.0,71132.0,0.54042593]
[1717749864594,0.26579621,71133.0,71132.0,0.56342593]
[1717749868365,0.26665621,71133.0,71132.0,0.56342593]
[1717749868554,0.26665621,71133.0,71132.0,0.63182593]
[1717749870779,0.26665621,71133.0,71132.0,0.56342593]
[1717749870987,0.26665621,71133.0,71132.0,0.63182593]
[1717749877292,0.26665621,71133.0,71132.0,0.56342593]
[1717749877473,0.26665621,71133.0,71132.0,0.63182593]
[1717749887218,0.26665621,71133.0,71132.0,0.92357099]
[1717749896451,0.26665621,71133.0,71132.0,0.92357065]
[1717749900247,0.26665621,71133.0,71132.0,0.68517065]
[1717749900480,0.26665621,71133.0,71132.0,1.40583765]
[1717749900702,0.26665621,71133.0,71132.0,1.46903644]
[1717749900917,0.26665621,71133.0,71132.0,1.82277391]
[1717749901357,0.26565621,71133.0,71132.0,1.50144259]
[1717749901578,0.26665621,71133.0,71132.0,1.71044259]
[1717749901798,0.26665621,71133.0,71132.0,1.82580186]
[1717749902031,0.26665621,71133.0,71132.0,1.82780186]
[1717749902258,0.26665621,71133.0,71132.0,1.82580186]
[1717749902705,0.26665621,71133.0,71132.0,1.82780186]
[1717749903674,0.26665621,71133.0,71132.0,1.72244259]
[1717749904741,0.26665621,71133.0,71132.0,1.82780879]
[1717749905423,0.26665621,71133.0,71132.0,1.75740879]
[1717749905665,0.26665621,71133.0,71132.0,1.82780879]
[1717749909950,0.26665621,71133.0,71132.0,1.72241116]
[1717749910668,0.26665621,71133.0,71132.0,1.52041116]
[1717749910888,0.26665621,71133.0,71132.0,1.72241013]
[1717749911106,0.26665621,71133.0,71132.0,1.52041013]
[1717749911324,0.26665621,71133.0,71132.0,1.72241013]
[1717749912398,0.26665621,71133.0,71132.0,1.43069787]
[1717749912621,0.26665621,71133.0,71132.0,1.72241082]
[1717749915287,0.26665621,71133.0,71132.0,1.52241082]
[1717749915499,0.26665621,71133.0,71132.0,1.72241082]
[1717749920142,0.26665621,71133.0,71132.0,1.43069787]
[1717749920363,0.26665621,71133.0,71132.0,1.72241047]
[1717749920563,0.26665621,71133.0,71132.0,1.45201047]
[1717749920762,0.26665621,71133.0,71132.0,1.52041047]
[1717749920991,0.26665621,71133.0,71132.0,1.45201047]
[1717749921347,0.26665621,71133.0,71132.0,1.60468288]
[1717749921994,0.26665621,71133.0,71132.0,1.52041047]
[1717749922411,0.26665621,71133.0,71132.0,1.52039147]
[1717749923255,0.26665621,71133.0,71132.0,1.60466451]
[1717749923923,0.26665621,71133.0,71132.0,1.52039147]
[1717749924340,0.26665621,71133.0,71132.0,1.60466451]
[1717749924552,0.26665621,71133.0,71132.0,1.60466949]
[1717749926967,0.26665621,71133.0,71132.0,1.60467392]
[1717749930192,0.26665621,71133.0,71132.0,1.36717392]
[1717749930418,0.26665621,71133.0,71132.0,1.29877392]
[1717749930658,0.26665621,71133.0,71132.0,1.36717392]
[1717749934544,0.26665621,71133.0,71132.0,1.07545634]
[1717749934961,0.26665621,71133.0,71132.0,1.36717395]
[1717749935629,0.26665621,71133.0,71132.0,1.28289648]
[1717749936080,0.26665621,71133.0,71132.0,1.21449648]
[1717749936306,0.26665621,71133.0,71132.0,1.28289648]
[1717749939264,0.26665621,71133.0,71132.0,1.38824332]
[1717749941719,0.26665621,71133.0,71132.0,1.31984332]
[1717749941928,0.26665621,71133.0,71132.0,1.38824332]
[1717749943447,0.26665621,71133.0,71132.0,1.28289648]
[1717749945151,0.26665621,71133.0,71132.0,1.28289599]
[1717749946863,0.50295621,71133.0,71132.0,1.21449599]
[1717749947073,0.50295621,71133.0,71132.0,1.28289599]
[1717749947287,0.50295621,71133.0,71132.0,1.34618576]
[1717749947501,0.50295621,71133.0,71132.0,1.28289599]
[1717749948149,0.50295621,71133.0,71132.0,1.34617867]
[1717749948358,0.50295621,71133.0,71132.0,0.99661167]
[1717749948571,0.50295621,71133.0,71132.0,0.75342622]
[1717749948849,0.50295621,71133.0,71132.0,0.69014354]
[1717749950565,0.50295621,71133.0,71132.0,0.71124763]
[1717749951134,0.50295621,71133.0,71132.0,0.75342516]
[1717749951481,0.50295621,71133.0,71132.0,0.46170755]
[1717749954520,0.50295621,71133.0,71132.0,0.41953002]
[1717749955287,0.50295621,71133.0,71132.0,0.39842593]
[1717749959311,0.28665621,71133.0,71132.0,0.32813002]
[1717749959489,0.28665621,71133.0,71132.0,0.16644293]
[1717749959490,0.50095621,71133.0,71132.0,0.16644293]
[1717749959728,0.52095621,71133.0,71132.0,0.16644293]
[1717749959934,0.50095621,71133.0,71132.0,0.16644293]
[1717749960142,0.52095621,71133.0,71132.0,0.16644293]
[1717749962295,0.52095621,71133.0,71132.0,0.022024]
[1717749962730,0.50095621,71133.0,71132.0,0.022024]
[1717749962930,0.52095621,71133.0,71132.0,0.022024]
[1717749963144,0.50095621,71133.0,71132.0,0.022024]
[1717749963567,0.26665621,71133.0,71132.0,0.37925417]
[1717749964243,0.26665621,71133.0,71132.0,0.30702593]
[1717749977619,0.26665621,71133.0,71132.0,0.55482593]
[1717749977828,0.26665621,71133.0,71132.0,0.91171603]
[1717749978260,0.26665621,71133.0,71132.0,0.86957615]
[1717749979119,0.26665621,71133.0,71132.0,1.15074315]
[1717749979380,0.26665621,71133.0,71132.0,1.21395297]
[1717749979992,0.26665621,71133.0,71132.0,1.21392946]
[1717749980423,0.26665621,71133.0,71132.0,1.50565617]
[1717749980650,0.26665621,71133.0,71132.0,1.21392946]
[1717749981463,0.26665621,71133.0,71132.0,1.52552489]
[1717749981749,0.26665621,71133.0,71132.0,1.46231507]
[1717749982813,0.26665621,71133.0,71132.0,1.4623118]
[1717749992989,0.26665621,71133.0,71132.0,1.6623118]
[1717749993819,0.26665621,71133.0,71132.0,1.4623118]
[1717749995193,0.26665621,71133.0,71132.0,1.6623118]
[1717749997204,0.26665621,71133.0,71132.0,1.6643118]
[1717749997421,0.26665621,71133.0,71132.0,1.9454788]
[1717749997641,0.26665621,71133.0,71132.0,2.0454788]
[1717749998637,0.26565621,71133.0,71132.0,2.02644097]
[1717749998838,0.26565621,71133.0,71132.0,2.04044097]
[1717749999044,0.26565621,71133.0,71132.0,2.05444097]
[1717750013423,0.26565621,71133.0,71132.0,2.33560797]
[1717750017504,0.26565621,71133.0,71132.0,2.44086151]
[1717750018111,0.26565621,71133.0,71132.0,2.1491348]
[1717750018669,0.26565621,71133.0,71132.0,2.44083177]
[1717750019293,0.26565621,71133.0,71132.0,2.33557823]
[1717750020499,0.26533794,71133.0,71132.0,2.33557823]
[1717750024869,0.26533794,71133.0,71132.0,2.0240239]
[1717750025133,0.26533794,71133.0,71132.0,2.33558823]
[1717750027659,0.26533794,71133.0,71132.0,2.13358823]
[1717750029297,0.26533794,71133.0,71132.0,2.33558823]
[1717750029861,0.26533794,71133.0,71132.0,2.13358823]
[1717750030073,0.26533794,71133.0,71132.0,2.33558823]
[1717750031478,0.26533794,71133.0,71132.0,2.13358823]
[1717750032130,0.26533794,71133.0,71132.0,2.33558823]
[1717750034165,0.26533794,71133.0,71132.0,2.13358823]
[1717750034367,0.26533794,71133.0,71132.0,2.33558823]
[1717750034796,0.26533794,71133.0,71132.0,2.13358823]
[1717750035230,0.26533794,71133.0,71132.0,2.33558823]
[1717750035447,0.26533794,71133.0,71132.0,2.46197735]
[1717750035657,0.26533794,71133.0,71132.0,2.33558823]
[1717750036118,0.26533794,71133.0,71132.0,2.46197735]
[1717750037205,0.26533794,71133.0,71132.0,2.46201644]
[1717750037834,0.26533794,71133.0,71132.0,2.26001644]
[1717750038190,0.26533794,71133.0,71132.0,2.46201644]
[1717750038399,0.26533794,71133.0,71132.0,2.26001644]
[1717750039740,0.26533794,71133.0,71132.0,2.46201644]
[1717750040179,0.26533794,71133.0,71132.0,2.33557387]
[1717750040883,0.26533794,71133.0,71132.0,2.13357387]
[1717750042270,0.26533794,71133.0,71132.0,2.33557387]
[1717750042653,0.26533794,71133.0,71132.0,2.1335735]
[1717750043083,0.26533794,71133.0,71132.0,2.3355735]
[1717750043718,0.26533794,71133.0,71132.0,1.8857735]
[1717750043955,0.26533794,71133.0,71132.0,2.08070158]
[1717750044202,0.26533794,71133.0,71132.0,1.9541735]
[1717750049847,0.26533794,71133.0,71132.0,2.1541735]
[1717750050294,0.26533794,71133.0,71132.0,1.9541735]
[1717750050448,0.26533794,71133.0,71132.0,2.15420123]
[1717750050906,0.26533794,71133.0,71132.0,1.95420123]
[1717750051692,0.50543794,71133.0,71132.0,1.32346723]
[1717750051891,0.50543794,71133.0,71132.0,1.47621223]
[1717750052097,0.50543794,71133.0,71132.0,1.39186723]
[1717750054151,0.50543794,71133.0,71132.0,1.45510324]
[1717750054543,0.50543794,71133.0,71132.0,1.39186723]
[1717750055369,0.50543794,71133.0,71132.0,1.45509795]
[1717750057412,0.50543794,71133.0,71132.0,1.45513202]
[1717750058256,0.50543794,71133.0,71132.0,1.14355469]
[1717750059053,0.50543794,71133.0,71132.0,1.39191989]
[1717750059256,0.50543794,71133.0,71132.0,1.32351989]
[1717750059460,0.50543794,71133.0,71132.0,1.39191989]
[1717750060083,0.34153794,71133.0,71132.0,1.39191989]
[1717750060518,0.34153794,71133.0,71132.0,1.59391989]
[1717750060662,0.34153794,71133.0,71132.0,1.39191989]
[1717750063727,0.34153794,71133.0,71132.0,1.39190425]
[1717750065132,0.34153794,71133.0,71132.0,1.69926176]
[1717750065389,0.34153794,71133.0,71132.0,1.67307125]
[1717750066210,0.34153794,71133.0,71132.0,1.87507125]
[1717750066365,0.34153794,71133.0,71132.0,1.67307125]
[1717750066788,0.34153794,71133.0,71132.0,1.87507125]
[1717750067215,0.34153794,71133.0,71132.0,1.67307125]
[1717750076395,0.34153794,71133.0,71132.0,1.39190425]
[1717750076809,0.34153794,71133.0,71132.0,1.49726772]
[1717750077597,0.34153794,71133.0,71132.0,1.39190425]
[1717750081846,0.49313794,71133.0,71132.0,1.39190425]
[1717750082578,0.49313794,71133.0,71132.0,1.39190684]
[1717750083237,0.49313794,71133.0,71132.0,1.4972779]
[1717750084710,0.49313794,71133.0,71132.0,1.4288779]
[1717750084934,0.49313794,71133.0,71132.0,1.4972779]
[1717750086443,0.34153794,71133.0,71132.0,1.4972779]
[1717750088244,0.34153794,71133.0,71132.0,1.39190684]
[1717750088658,0.34153794,71133.0,71132.0,1.08032397]
[1717750088865,0.34153794,71133.0,71132.0,1.39190647]
[1717750095105,0.26533794,71133.0,71132.0,1.39190647]
[1717750103732,0.26533794,71133.0,71132.0,1.32350647]
[1717750104344,0.26533794,71133.0,71132.0,1.39190647]
[1717750108201,0.26933794,71133.0,71132.0,1.39190647]
[1717750111620,0.26933794,71133.0,71132.0,1.08032397]
[1717750111783,0.26933794,71133.0,71132.0,1.39190878]
[1717750113501,0.51253794,71133.0,71132.0,1.32350878]
[1717750113747,0.51253794,71133.0,71132.0,1.39190878]
[1717750117681,0.52843794,71133.0,71132.0,1.04234178]
[1717750117898,0.52843794,71133.0,71132.0,0.87875878]
[1717750118343,0.52843794,71133.0,71132.0,0.58702774]
[1717750118768,0.52843794,71133.0,71132.0,0.57302774]
[1717750119216,0.52843794,71133.0,71132.0,0.58702774]
[1717750119641,0.52843794,71133.0,71132.0,0.57302774]
[1717750119889,0.52843794,71133.0,71132.0,0.27544293]
[1717750120554,0.52843794,71133.0,71132.0,0.26144293]
[1717750120771,0.52843794,71133.0,71132.0,0.24744293]
[1717750120979,0.52843794,71133.0,71132.0,0.103024]
[1717750121184,0.52843794,71133.0,71132.0,0.117024]
[1717750121601,0.52843794,71133.0,71132.0,0.103024]
[1717750121802,0.52843794,71133.0,71132.0,0.117024]
[1717750121983,0.52843794,71133.0,71132.0,0.131024]
[1717750122193,0.52843794,71133.0,71132.0,0.031024]
[1717750122424,0.77901894,71133.0,71132.0,0.031024]